[Event "*** Titled Tuesday Blitz"]
[Site "Chess.com"]
[Date "2018.09.04"]
[Round "3"]
[White "TastyFrenchFries"]
[Black "Schachmalanders"]
[Result "1-0"]
[WhiteElo "2345"]
[BlackElo "2357"]
[TimeControl "180+2"]
[EndTime "14:09:40 PDT"]
[Termination "TastyFrenchFries won by resignation"]

1. e4 {[%clk 0:03:01.9]} 1... c5 {[%clk 0:03:00.3]} 2. Nf3 {[%clk 0:03:02.2]}
2... e6 {[%clk 0:03:01.3]} 3. c3 {[%clk 0:03:02.2]} 3... d5 {[%clk 0:02:59.5]}
4. e5 {[%clk 0:03:02.8]} 4... Nc6 {[%clk 0:02:59.2]} 5. d4 {[%clk 0:03:00.1]}
5... Qb6 {[%clk 0:02:57.4]} 6. a3 {[%clk 0:02:59.5]} 6... Nge7 {[%clk
0:02:53.9]} 7. b4 {[%clk 0:02:57]} 7... cxd4 {[%clk 0:02:54]} 8. cxd4 {[%clk
0:02:58.9]} 8... Nf5 {[%clk 0:02:53.3]} 9. Be3 {[%clk 0:02:56.2]} 9... Bd7
{[%clk 0:02:49.4]} 10. Bd3 {[%clk 0:02:54.9]} 10... Nxe3 {[%clk 0:02:13.8]} 11.
fxe3 {[%clk 0:02:56.5]} 11... Be7 {[%clk 0:02:15]} 12. O-O {[%clk 0:02:53.4]}
12... O-O {[%clk 0:02:16]} 13. Nc3 {[%clk 0:02:52.7]} 13... f6 {[%clk 0:02:15]}
14. exf6 {[%clk 0:02:51.9]} 14... Bxf6 {[%clk 0:02:12.9]} 15. Na4 {[%clk
0:02:53.2]} 15... Qc7 {[%clk 0:02:08.3]} 16. Qc2 {[%clk 0:02:47.3]} 16... g6
{[%clk 0:02:02.9]} 17. b5 {[%clk 0:02:32.6]} 17... Rac8 {[%clk 0:01:07]} 18.
bxc6 {[%clk 0:02:24.6]} 18... Bxc6 {[%clk 0:01:08.9]} 19. Nc3 {[%clk 0:02:24]}
19... e5 {[%clk 0:00:58.7]} 20. dxe5 {[%clk 0:02:18.7]} 20... Bxe5 {[%clk
0:01:00.6]} 21. Nxe5 {[%clk 0:02:09]} 21... Qxe5 {[%clk 0:01:02.5]} 22. Qd2
{[%clk 0:02:10.1]} 22... d4 {[%clk 0:00:59.7]} 23. Bc4+ {[%clk 0:01:41.5]} 23...
Kh8 {[%clk 0:00:42.7]} 24. exd4 {[%clk 0:01:31.9]} 1-0

[Event "*** Titled Tuesday Blitz"]
[Site "Chess.com"]
[Date "2018.09.04"]
[Round "3"]
[White "MrVezunchik"]
[Black "danyuffa"]
[Result "1/2-1/2"]
[WhiteElo "2836"]
[BlackElo "2679"]
[TimeControl "180+2"]
[EndTime "14:09:52 PDT"]
[Termination "Game drawn by agreement"]

1. d4 {[%clk 0:03:01.9]} 1... Nf6 {[%clk 0:03:00.7]} 2. c4 {[%clk 0:03:02.9]}
2... g6 {[%clk 0:03:01.5]} 3. g3 {[%clk 0:03:03.9]} 3... c5 {[%clk 0:03:02.2]}
4. d5 {[%clk 0:03:02.1]} 4... Bg7 {[%clk 0:03:02.7]} 5. Nc3 {[%clk 0:03:02.8]}
5... O-O {[%clk 0:03:04]} 6. Bg2 {[%clk 0:03:04.2]} 6... e6 {[%clk 0:03:05.1]}
7. Nf3 {[%clk 0:03:05.8]} 7... exd5 {[%clk 0:03:01]} 8. cxd5 {[%clk 0:03:07.4]}
8... d6 {[%clk 0:02:57.3]} 9. O-O {[%clk 0:03:08.2]} 9... Re8 {[%clk 0:02:55.1]}
10. Re1 {[%clk 0:03:09.5]} 10... a6 {[%clk 0:02:49.7]} 11. a4 {[%clk 0:03:09.9]}
11... Nbd7 {[%clk 0:02:49.7]} 12. Qc2 {[%clk 0:03:10]} 12... Ne5 {[%clk
0:02:42.4]} 13. Nxe5 {[%clk 0:03:10.1]} 13... Rxe5 {[%clk 0:02:42.6]} 14. Bf4
{[%clk 0:03:08.3]} 14... Re8 {[%clk 0:02:41.9]} 15. e4 {[%clk 0:03:08.1]} 15...
Ng4 {[%clk 0:02:42.7]} 16. h3 {[%clk 0:02:47.1]} 16... Ne5 {[%clk 0:02:43.6]}
17. Nd1 {[%clk 0:01:57.7]} 17... Bd7 {[%clk 0:02:34.6]} 18. a5 {[%clk
0:01:56.2]} 18... Bb5 {[%clk 0:02:34.7]} 19. Bxe5 {[%clk 0:01:41.2]} 19... Bxe5
{[%clk 0:02:35]} 20. Ne3 {[%clk 0:01:37.6]} 20... Bd4 {[%clk 0:02:30.3]} 21. Ra2
{[%clk 0:01:26.1]} 21... h5 {[%clk 0:02:26.2]} 22. h4 {[%clk 0:01:23]} 22... Qf6
{[%clk 0:02:27]} 23. Kh2 {[%clk 0:01:13.7]} 23... Re7 {[%clk 0:02:24.3]} 24. f4
{[%clk 0:01:07.6]} 24... Rae8 {[%clk 0:02:22.9]} 25. b3 {[%clk 0:00:59.5]} 25...
Qg7 {[%clk 0:02:04.9]} 26. Nc4 {[%clk 0:00:51.6]} 26... Bxc4 {[%clk 0:02:03.6]}
27. Qxc4 {[%clk 0:00:47.2]} 1/2-1/2

[Event "*** Titled Tuesday Blitz"]
[Site "Chess.com"]
[Date "2018.09.04"]
[Round "3"]
[White "GABUZYAN_CHESSMOOD"]
[Black "martinmartinez95"]
[Result "0-1"]
[WhiteElo "2594"]
[BlackElo "2444"]
[TimeControl "180+2"]
[EndTime "14:10:14 PDT"]
[Termination "martinmartinez95 won on time"]

1. Nf3 {[%clk 0:03:01.6]} 1... g6 {[%clk 0:02:56.3]} 2. g3 {[%clk 0:03:01.7]}
2... Bg7 {[%clk 0:02:56.6]} 3. Bg2 {[%clk 0:03:03.2]} 3... d6 {[%clk 0:02:53.5]}
4. O-O {[%clk 0:03:05.1]} 4... Nf6 {[%clk 0:02:55.1]} 5. d4 {[%clk 0:03:05.9]}
5... O-O {[%clk 0:02:56.5]} 6. Nc3 {[%clk 0:03:04.1]} 6... c6 {[%clk 0:02:49.4]}
7. e4 {[%clk 0:03:04.8]} 7... Qc7 {[%clk 0:02:44.6]} 8. Re1 {[%clk 0:02:50.3]}
8... e5 {[%clk 0:02:43.2]} 9. h3 {[%clk 0:02:50.5]} 9... Nbd7 {[%clk 0:02:40.2]}
10. Be3 {[%clk 0:02:46.5]} 10... b5 {[%clk 0:02:31.7]} 11. a3 {[%clk 0:02:46.9]}
11... a5 {[%clk 0:02:29.9]} 12. Qd2 {[%clk 0:02:47.8]} 12... Bb7 {[%clk
0:02:23.2]} 13. Bh6 {[%clk 0:02:47.3]} 13... b4 {[%clk 0:02:22.2]} 14. axb4
{[%clk 0:02:48.2]} 14... axb4 {[%clk 0:02:22.9]} 15. Rxa8 {[%clk 0:02:48.7]}
15... Rxa8 {[%clk 0:02:22.8]} 16. Nd1 {[%clk 0:02:49.4]} 16... Bxh6 {[%clk
0:02:10.3]} 17. Qxh6 {[%clk 0:02:49.3]} 17... Ra1 {[%clk 0:02:10.9]} 18. dxe5
{[%clk 0:02:48.7]} 18... Nxe5 {[%clk 0:02:06.9]} 19. Ng5 {[%clk 0:02:48.7]}
19... Qb6 {[%clk 0:01:54.5]} 20. Rf1 {[%clk 0:02:43.3]} 20... Ba6 {[%clk
0:01:49.6]} 21. Re1 {[%clk 0:02:38.9]} 21... Qd4 {[%clk 0:01:38.4]} 22. Nf3
{[%clk 0:02:31]} 22... Nxf3+ {[%clk 0:01:38.8]} 23. Bxf3 {[%clk 0:02:32.9]}
23... Nd7 {[%clk 0:01:28.7]} 24. Bg2 {[%clk 0:02:13.1]} 24... Rxd1 {[%clk
0:01:25.9]} 0-1

[Event "*** Titled Tuesday Blitz"]
[Site "Chess.com"]
[Date "2018.09.04"]
[Round "3"]
[White "Paladin61"]
[Black "Arash_Tahbaz"]
[Result "0-1"]
[WhiteElo "2515"]
[BlackElo "2730"]
[TimeControl "180+2"]
[EndTime "14:10:20 PDT"]
[Termination "Arash_Tahbaz won by resignation"]

1. d4 {[%clk 0:02:58.8]} 1... g6 {[%clk 0:03:00]} 2. c4 {[%clk 0:02:58.8]} 2...
Bg7 {[%clk 0:03:00.4]} 3. e4 {[%clk 0:03:00.2]} 3... e6 {[%clk 0:03:00.2]} 4.
Nc3 {[%clk 0:02:57.3]} 4... Ne7 {[%clk 0:03:01.3]} 5. f3 {[%clk 0:02:48.7]} 5...
d5 {[%clk 0:03:01.5]} 6. Be3 {[%clk 0:02:40.1]} 6... Nbc6 {[%clk 0:02:56]} 7.
Nge2 {[%clk 0:01:58]} 7... O-O {[%clk 0:02:56]} 8. Qd2 {[%clk 0:01:54.8]} 8...
dxc4 {[%clk 0:02:42.8]} 9. O-O-O {[%clk 0:01:53.2]} 9... a6 {[%clk 0:02:26.8]}
10. Bh6 {[%clk 0:01:52.1]} 10... b5 {[%clk 0:02:22.4]} 11. h4 {[%clk 0:01:49.9]}
11... f6 {[%clk 0:02:10.3]} 12. Bxg7 {[%clk 0:01:43.6]} 12... Kxg7 {[%clk
0:02:10.9]} 13. h5 {[%clk 0:01:43.5]} 13... g5 {[%clk 0:02:09.8]} 14. h6+ {[%clk
0:01:44.3]} 14... Kh8 {[%clk 0:02:09.1]} 15. f4 {[%clk 0:01:31.4]} 15... gxf4
{[%clk 0:02:06.5]} 16. Qxf4 {[%clk 0:01:32.3]} 16... Qd6 {[%clk 0:01:58.5]} 17.
e5 {[%clk 0:01:20.5]} 17... Qd8 {[%clk 0:01:50.2]} 18. Qg3 {[%clk 0:01:00.6]}
18... Nf5 {[%clk 0:01:49.6]} 19. Qf2 {[%clk 0:00:57.7]} 19... fxe5 {[%clk
0:01:47.9]} 20. dxe5 {[%clk 0:00:55.3]} 20... Qg5+ {[%clk 0:01:49.4]} 21. Kb1
{[%clk 0:00:56.4]} 21... Nxe5 {[%clk 0:01:42.2]} 22. Ne4 {[%clk 0:00:54.5]}
22... Qe3 {[%clk 0:01:40.5]} 23. Qf4 {[%clk 0:00:47.7]} 23... Ng6 {[%clk
0:01:29.7]} 24. Qf3 {[%clk 0:00:19.5]} 24... Bb7 {[%clk 0:01:28.7]} 25. N2c3
{[%clk 0:00:16.4]} 25... b4 {[%clk 0:01:26.8]} 0-1

[Event "*** Titled Tuesday Blitz"]
[Site "Chess.com"]
[Date "2018.09.04"]
[Round "3"]
[White "aquaticpineapples"]
[Black "epccmelech"]
[Result "1-0"]
[WhiteElo "2008"]
[BlackElo "1621"]
[TimeControl "180+2"]
[EndTime "14:10:55 PDT"]
[Termination "aquaticpineapples won on time"]

1. d4 {[%clk 0:03:01.9]} 1... Nf6 {[%clk 0:02:57.7]} 2. Nf3 {[%clk 0:03:01.3]}
2... c5 {[%clk 0:02:57.3]} 3. e3 {[%clk 0:03:01.7]} 3... cxd4 {[%clk 0:02:55.7]}
4. exd4 {[%clk 0:03:02.7]} 4... d5 {[%clk 0:02:55.6]} 5. h3 {[%clk 0:03:00.8]}
5... Nc6 {[%clk 0:02:54.3]} 6. Bd3 {[%clk 0:03:01.5]} 6... g6 {[%clk 0:02:36.2]}
7. c3 {[%clk 0:03:01.9]} 7... Bg7 {[%clk 0:02:36.2]} 8. O-O {[%clk 0:03:02.6]}
8... O-O {[%clk 0:02:36.8]} 9. Bf4 {[%clk 0:03:03.3]} 9... Re8 {[%clk 0:02:13]}
10. Nbd2 {[%clk 0:02:55.5]} 10... Qb6 {[%clk 0:01:58.2]} 11. Rb1 {[%clk
0:02:49.7]} 11... Bd7 {[%clk 0:01:52.4]} 12. Re1 {[%clk 0:02:45.5]} 12... Rac8
{[%clk 0:01:46.4]} 13. Ne5 {[%clk 0:02:24.3]} 13... Nxe5 {[%clk 0:01:34.8]} 14.
Bxe5 {[%clk 0:02:23.9]} 14... Nh5 {[%clk 0:01:28.6]} 15. Qf3 {[%clk 0:02:15.9]}
15... Bxe5 {[%clk 0:01:03]} 16. Rxe5 {[%clk 0:02:06.1]} 16... Nf6 {[%clk
0:00:58.4]} 17. Nb3 {[%clk 0:02:02]} 17... Bb5 {[%clk 0:00:52]} 18. Bc2 {[%clk
0:01:49.3]} 18... Kg7 {[%clk 0:00:45.5]} 19. Rbe1 {[%clk 0:01:47.5]} 19... e6
{[%clk 0:00:39.6]} 20. Nc5 {[%clk 0:01:40.1]} 20... Nd7 {[%clk 0:00:32.3]} 21.
b4 {[%clk 0:01:29.4]} 21... Nxc5 {[%clk 0:00:26.8]} 22. dxc5 {[%clk 0:01:23.7]}
22... Qc6 {[%clk 0:00:23.4]} 23. h4 {[%clk 0:01:07.8]} 23... a5 {[%clk
0:00:22.5]} 24. h5 {[%clk 0:01:07.2]} 24... Qc7 {[%clk 0:00:15.8]} 25. R1e3
{[%clk 0:00:55.4]} 25... Qd7 {[%clk 0:00:08.3]} 26. h6+ {[%clk 0:00:56]} 26...
Kxh6 {[%clk 0:00:05.4]} 27. Qf6 {[%clk 0:00:56.1]} 1-0

[Event "*** Titled Tuesday Blitz"]
[Site "Chess.com"]
[Date "2018.09.04"]
[Round "3"]
[White "GeorgMeier"]
[Black "chesstatour"]
[Result "1-0"]
[WhiteElo "2817"]
[BlackElo "1994"]
[TimeControl "180+2"]
[EndTime "14:10:55 PDT"]
[Termination "GeorgMeier won by resignation"]

1. Nf3 {[%clk 0:03:01.9]} 1... Nf6 {[%clk 0:02:59.7]} 2. g3 {[%clk 0:03:03.3]}
2... g6 {[%clk 0:02:59.2]} 3. Bg2 {[%clk 0:03:04.6]} 3... Bg7 {[%clk 0:03:00.8]}
4. O-O {[%clk 0:03:06.1]} 4... O-O {[%clk 0:03:02.1]} 5. d4 {[%clk 0:03:07.5]}
5... d5 {[%clk 0:02:57.4]} 6. c4 {[%clk 0:03:07.6]} 6... c6 {[%clk 0:02:58.3]}
7. cxd5 {[%clk 0:03:08]} 7... cxd5 {[%clk 0:02:58.8]} 8. Nc3 {[%clk 0:03:09.4]}
8... Nc6 {[%clk 0:03:00]} 9. Ne5 {[%clk 0:03:10.5]} 9... Be6 {[%clk 0:02:55.9]}
10. Bf4 {[%clk 0:03:11.1]} 10... Rc8 {[%clk 0:02:40.9]} 11. Rc1 {[%clk
0:03:11.2]} 11... Qb6 {[%clk 0:02:32]} 12. Na4 {[%clk 0:03:12.1]} 12... Qa5
{[%clk 0:02:15.8]} 13. Rc5 {[%clk 0:03:09.4]} 13... Qd8 {[%clk 0:02:14.9]} 14.
Nxc6 {[%clk 0:03:08.4]} 14... Rxc6 {[%clk 0:02:06.6]} 15. Rxc6 {[%clk 0:03:08]}
15... bxc6 {[%clk 0:02:08.5]} 16. Nc5 {[%clk 0:03:09.5]} 16... Bc8 {[%clk
0:02:08.7]} 17. Be5 {[%clk 0:03:05.8]} 17... Nd7 {[%clk 0:01:58.9]} 18. Bxg7
{[%clk 0:03:05.5]} 18... Kxg7 {[%clk 0:02:00.8]} 19. Qc2 {[%clk 0:03:06.3]}
19... Qb6 {[%clk 0:01:51.2]} 20. Nxd7 {[%clk 0:03:03.3]} 20... Bxd7 {[%clk
0:01:51.4]} 21. Qc3 {[%clk 0:03:04.7]} 21... Rb8 {[%clk 0:01:48.7]} 22. b3
{[%clk 0:03:04.5]} 22... Qb4 {[%clk 0:01:34.3]} 23. Rc1 {[%clk 0:03:05.2]} 23...
Qxc3 {[%clk 0:01:34.7]} 24. Rxc3 {[%clk 0:03:07.1]} 24... Rb5 {[%clk 0:01:23.1]}
25. e3 {[%clk 0:03:06.6]} 25... Ra5 {[%clk 0:00:53.1]} 26. a4 {[%clk 0:03:06.5]}
26... Ra6 {[%clk 0:00:54]} 27. Kf1 {[%clk 0:03:05.8]} 27... Kf8 {[%clk
0:00:46.3]} 28. Ke1 {[%clk 0:03:06.5]} 28... Ke8 {[%clk 0:00:47.6]} 29. Kd2
{[%clk 0:03:07.5]} 29... Kd8 {[%clk 0:00:48.9]} 30. Kc2 {[%clk 0:03:08.5]} 30...
Rb6 {[%clk 0:00:47.7]} 31. Kb2 {[%clk 0:03:09.4]} 31... f6 {[%clk 0:00:44]} 32.
Ka3 {[%clk 0:03:10.1]} 32... e6 {[%clk 0:00:39.6]} 33. f4 {[%clk 0:03:08.8]}
33... Ke7 {[%clk 0:00:39.5]} 34. e4 {[%clk 0:03:07.6]} 34... f5 {[%clk
0:00:25.1]} 35. e5 {[%clk 0:03:06.9]} 35... h6 {[%clk 0:00:21.2]} 36. Bf1 {[%clk
0:03:05.7]} 36... Rb8 {[%clk 0:00:20.2]} 37. Rc5 {[%clk 0:03:06.6]} 37... g5
{[%clk 0:00:17.2]} 38. Ra5 {[%clk 0:03:07.5]} 38... Rb7 {[%clk 0:00:17.8]} 39.
Ba6 {[%clk 0:03:04.5]} 39... Rc7 {[%clk 0:00:18.5]} 40. Kb4 {[%clk 0:03:06.1]}
40... Kd8 {[%clk 0:00:17.4]} 41. Kc5 {[%clk 0:03:06.1]} 41... Ke7 {[%clk
0:00:18.5]} 42. Be2 {[%clk 0:03:05.2]} 42... gxf4 {[%clk 0:00:14.6]} 43. gxf4
{[%clk 0:03:05.7]} 43... Rc8 {[%clk 0:00:12.3]} 44. Rxa7 {[%clk 0:03:02.8]}
44... Rg8 {[%clk 0:00:13.2]} 45. Ba6 {[%clk 0:02:55.2]} 45... h5 {[%clk
0:00:11.2]} 46. Bb7 {[%clk 0:02:52.8]} 46... Rg2 {[%clk 0:00:07.1]} 47. h4
{[%clk 0:02:50.2]} 47... Rc2+ {[%clk 0:00:05.8]} 48. Kb6 {[%clk 0:02:50.9]}
48... Kd8 {[%clk 0:00:05.9]} 49. b4 {[%clk 0:02:50.8]} 49... Rb2 {[%clk
0:00:05.7]} 50. Bxc6 {[%clk 0:02:46]} 50... Bxc6 {[%clk 0:00:04.1]} 51. Kxc6
{[%clk 0:02:46.5]} 51... Rxb4 {[%clk 0:00:05.7]} 52. Kd6 {[%clk 0:02:47.4]}
52... Rxd4 {[%clk 0:00:05.8]} 1-0

[Event "*** Titled Tuesday Blitz"]
[Site "Chess.com"]
[Date "2018.09.04"]
[Round "3"]
[White "dretch"]
[Black "Aryangholami"]
[Result "1-0"]
[WhiteElo "2762"]
[BlackElo "2720"]
[TimeControl "180+2"]
[EndTime "14:11:01 PDT"]
[Termination "dretch won on time"]

1. d4 {[%clk 0:03:01.9]} 1... Nf6 {[%clk 0:03:00.2]} 2. c4 {[%clk 0:03:03.3]}
2... e6 {[%clk 0:03:00.3]} 3. Nc3 {[%clk 0:03:04.3]} 3... Bb4 {[%clk 0:02:59.7]}
4. Qc2 {[%clk 0:03:05.3]} 4... b6 {[%clk 0:02:58.8]} 5. e4 {[%clk 0:03:04.3]}
5... c5 {[%clk 0:02:59.4]} 6. a3 {[%clk 0:03:00.2]} 6... Bxc3+ {[%clk
0:02:48.4]} 7. bxc3 {[%clk 0:03:02.1]} 7... d6 {[%clk 0:02:47.5]} 8. Bd3 {[%clk
0:02:51.2]} 8... Nc6 {[%clk 0:02:45.9]} 9. Ne2 {[%clk 0:02:49.8]} 9... O-O
{[%clk 0:02:44.4]} 10. O-O {[%clk 0:02:49.3]} 10... Ba6 {[%clk 0:02:41.7]} 11.
f4 {[%clk 0:02:47.8]} 11... e5 {[%clk 0:02:16.6]} 12. fxe5 {[%clk 0:02:49.7]}
12... dxe5 {[%clk 0:02:16]} 13. d5 {[%clk 0:02:51]} 13... Na5 {[%clk 0:02:16.5]}
14. Bg5 {[%clk 0:02:50.7]} 14... Bxc4 {[%clk 0:02:09.8]} 15. Ng3 {[%clk
0:02:47.1]} 15... Bb3 {[%clk 0:01:37.6]} 16. Qc1 {[%clk 0:02:46.8]} 16... Kh8
{[%clk 0:01:30.4]} 17. Nf5 {[%clk 0:02:26.6]} 17... Rg8 {[%clk 0:01:11.9]} 18.
Nxg7 {[%clk 0:02:12.9]} 18... Kxg7 {[%clk 0:01:13.8]} 19. Bxf6+ {[%clk
0:02:11.9]} 19... Qxf6 {[%clk 0:01:13.8]} 20. Rxf6 {[%clk 0:02:12.7]} 20... Kxf6
{[%clk 0:01:15.7]} 21. Qh6+ {[%clk 0:02:13.5]} 21... Ke7 {[%clk 0:01:13.2]} 22.
Rf1 {[%clk 0:02:06]} 22... Rg6 {[%clk 0:01:08.6]} 23. Qh4+ {[%clk 0:02:04.8]}
23... Kf8 {[%clk 0:00:45.8]} 24. Qxh7 {[%clk 0:02:02.4]} 24... Rg7 {[%clk
0:00:45.7]} 25. Qh8+ {[%clk 0:02:03]} 25... Rg8 {[%clk 0:00:46.7]} 26. Qh5
{[%clk 0:01:41.5]} 26... Rg7 {[%clk 0:00:41.4]} 27. Rxf7+ {[%clk 0:01:40.7]}
27... Rxf7 {[%clk 0:00:40.9]} 28. Qh8+ {[%clk 0:01:41.5]} 28... Ke7 {[%clk
0:00:42.3]} 29. Qxa8 {[%clk 0:01:41.7]} 29... Kd6 {[%clk 0:00:41.4]} 30. Qd8+
{[%clk 0:01:40.1]} 30... Rd7 {[%clk 0:00:42]} 31. Qb8+ {[%clk 0:01:40.8]} 31...
Rc7 {[%clk 0:00:42.4]} 32. h4 {[%clk 0:01:40.3]} 32... c4 {[%clk 0:00:39.5]} 33.
Be2 {[%clk 0:01:39.7]} 33... Bc2 {[%clk 0:00:38.4]} 34. Bg4 {[%clk 0:01:39.1]}
34... Nb7 {[%clk 0:00:17.4]} 35. Qf8+ {[%clk 0:01:38.8]} 35... Re7 {[%clk
0:00:15.3]} 36. Qf6+ {[%clk 0:01:39.4]} 36... Kc5 {[%clk 0:00:15.5]} 37. Qxe7+
{[%clk 0:01:40.3]} 1-0

[Event "*** Titled Tuesday Blitz"]
[Site "Chess.com"]
[Date "2018.09.04"]
[Round "3"]
[White "indfraeng"]
[Black "Quiet_Desperation"]
[Result "0-1"]
[WhiteElo "1942"]
[BlackElo "1892"]
[TimeControl "180+2"]
[EndTime "14:11:12 PDT"]
[Termination "Quiet_Desperation won by checkmate"]

1. d4 {[%clk 0:03:01.9]} 1... Nf6 {[%clk 0:02:39.3]} 2. c4 {[%clk 0:02:50.3]}
2... e6 {[%clk 0:02:40.1]} 3. g3 {[%clk 0:02:43.9]} 3... Bb4+ {[%clk 0:02:40.5]}
4. Bd2 {[%clk 0:02:42.5]} 4... Qe7 {[%clk 0:02:41.2]} 5. Nf3 {[%clk 0:02:42.1]}
5... Nc6 {[%clk 0:02:42.3]} 6. Bg2 {[%clk 0:02:42.2]} 6... Bxd2+ {[%clk
0:02:43.4]} 7. Qxd2 {[%clk 0:02:40]} 7... Ne4 {[%clk 0:02:44]} 8. Qd3 {[%clk
0:02:40.2]} 8... Qb4+ {[%clk 0:02:44.3]} 9. Nc3 {[%clk 0:02:36.2]} 9... Qxb2
{[%clk 0:02:44.6]} 10. O-O {[%clk 0:02:08.1]} 10... Nxc3 {[%clk 0:02:42.7]} 11.
Nd2 {[%clk 0:02:05.2]} 11... Nb4 {[%clk 0:02:32.1]} 12. Qe3 {[%clk 0:01:59.8]}
12... Nc2 {[%clk 0:02:23.1]} 13. Qd3 {[%clk 0:01:58.3]} 13... Nxa1 {[%clk
0:02:22.1]} 14. d5 {[%clk 0:01:54.4]} 14... O-O {[%clk 0:02:06.6]} 15. Ne4
{[%clk 0:01:48.1]} 15... Nxe2+ {[%clk 0:01:58.9]} 16. Kh1 {[%clk 0:01:47.4]}
16... f5 {[%clk 0:01:49.6]} 17. Ng5 {[%clk 0:01:46]} 17... Nc3 {[%clk
0:01:22.2]} 18. dxe6 {[%clk 0:01:40.2]} 18... dxe6 {[%clk 0:01:22.1]} 19. g4
{[%clk 0:01:37.7]} 19... Qc2 {[%clk 0:01:10.7]} 20. Qe3 {[%clk 0:01:32.3]} 20...
h6 {[%clk 0:00:47.6]} 21. Rxa1 {[%clk 0:01:30.4]} 21... hxg5 {[%clk 0:00:47.2]}
22. Rc1 {[%clk 0:01:30.9]} 22... f4 {[%clk 0:00:44.2]} 23. Qxc3 {[%clk
0:01:28.2]} 23... Qxc3 {[%clk 0:00:45.5]} 24. Rxc3 {[%clk 0:01:29.6]} 24... e5
{[%clk 0:00:46.5]} 25. f3 {[%clk 0:01:28.6]} 25... Kf7 {[%clk 0:00:44.6]} 26.
Bf1 {[%clk 0:01:28.1]} 26... Kf6 {[%clk 0:00:45.2]} 27. Bd3 {[%clk 0:01:28.8]}
27... Be6 {[%clk 0:00:46.3]} 28. Be4 {[%clk 0:01:28]} 28... c6 {[%clk
0:00:46.5]} 29. c5 {[%clk 0:01:28]} 29... Rad8 {[%clk 0:00:47.3]} 30. Ra3 {[%clk
0:01:25.7]} 30... a6 {[%clk 0:00:46.6]} 31. Ra4 {[%clk 0:01:25.5]} 31... Rd4
{[%clk 0:00:45.4]} 32. Ra3 {[%clk 0:01:21.7]} 32... Rxe4 {[%clk 0:00:46.4]} 33.
fxe4 {[%clk 0:01:21.8]} 33... Bxg4 {[%clk 0:00:47.6]} 34. Rb3 {[%clk 0:01:22.6]}
34... Rf7 {[%clk 0:00:49.1]} 35. Kg2 {[%clk 0:01:21.2]} 35... Rd7 {[%clk
0:00:49.4]} 36. h3 {[%clk 0:01:20.3]} 36... Be6 {[%clk 0:00:50.5]} 37. Rb2
{[%clk 0:01:19.3]} 37... g6 {[%clk 0:00:48.4]} 38. a4 {[%clk 0:01:16.1]} 38...
g4 {[%clk 0:00:49.2]} 39. hxg4 {[%clk 0:01:13.9]} 39... Bxg4 {[%clk 0:00:51.1]}
40. a5 {[%clk 0:01:14.4]} 40... Be6 {[%clk 0:00:51.7]} 41. Kf2 {[%clk
0:01:08.6]} 41... g5 {[%clk 0:00:52.6]} 42. Kg2 {[%clk 0:01:09.2]} 42... g4
{[%clk 0:00:53.8]} 43. Kf2 {[%clk 0:01:09.9]} 43... Kg5 {[%clk 0:00:53.7]} 44.
Kg1 {[%clk 0:01:09.3]} 44... g3 {[%clk 0:00:54.6]} 45. Kg2 {[%clk 0:01:09.4]}
45... Kg4 {[%clk 0:00:55.5]} 46. Rc2 {[%clk 0:01:09.6]} 46... f3+ {[%clk
0:00:56]} 47. Kg1 {[%clk 0:01:08.9]} 47... Rd1# {[%clk 0:00:57.1]} 0-1

[Event "*** Titled Tuesday Blitz"]
[Site "Chess.com"]
[Date "2018.09.04"]
[Round "3"]
[White "chessmaxusa"]
[Black "Mbneu"]
[Result "1-0"]
[WhiteElo "2511"]
[BlackElo "2260"]
[TimeControl "180+2"]
[EndTime "14:11:18 PDT"]
[Termination "chessmaxusa won by resignation"]

1. d4 {[%clk 0:03:01.9]} 1... Nf6 {[%clk 0:02:59.4]} 2. Nf3 {[%clk 0:03:03.2]}
2... c5 {[%clk 0:02:59.8]} 3. c3 {[%clk 0:03:03.7]} 3... b6 {[%clk 0:02:58.3]}
4. Bf4 {[%clk 0:03:04.1]} 4... Bb7 {[%clk 0:02:58.5]} 5. e3 {[%clk 0:03:05.5]}
5... d6 {[%clk 0:02:59.4]} 6. Nbd2 {[%clk 0:03:06.5]} 6... Nbd7 {[%clk
0:02:59.3]} 7. h3 {[%clk 0:03:07.8]} 7... g6 {[%clk 0:03:00]} 8. Be2 {[%clk
0:03:09.1]} 8... Bg7 {[%clk 0:03:01.1]} 9. O-O {[%clk 0:03:10.4]} 9... O-O
{[%clk 0:03:02]} 10. a4 {[%clk 0:03:11.8]} 10... a6 {[%clk 0:03:03]} 11. Bh2
{[%clk 0:03:12.5]} 11... Qc7 {[%clk 0:03:03.4]} 12. Re1 {[%clk 0:03:13.4]} 12...
Bc6 {[%clk 0:02:55.4]} 13. Bf1 {[%clk 0:03:14]} 13... b5 {[%clk 0:02:56.1]} 14.
a5 {[%clk 0:03:14.5]} 14... Ne4 {[%clk 0:02:47.4]} 15. Nxe4 {[%clk 0:03:12.5]}
15... Bxe4 {[%clk 0:02:47.4]} 16. Nd2 {[%clk 0:03:14.4]} 16... Bb7 {[%clk
0:02:47.4]} 17. Qb3 {[%clk 0:03:04.9]} 17... Qc6 {[%clk 0:02:43.9]} 18. Rad1
{[%clk 0:03:01]} 18... Rac8 {[%clk 0:02:42.3]} 19. Nf3 {[%clk 0:02:57.4]} 19...
c4 {[%clk 0:02:34.2]} 20. Qa3 {[%clk 0:02:50.5]} 20... Qe4 {[%clk 0:02:31.6]}
21. Rc1 {[%clk 0:02:45]} 21... h6 {[%clk 0:02:27.5]} 22. Nd2 {[%clk 0:02:45.7]}
22... Qc6 {[%clk 0:02:15.6]} 23. e4 {[%clk 0:02:37.9]} 23... e5 {[%clk
0:02:16.1]} 24. Nf3 {[%clk 0:02:32.8]} 24... d5 {[%clk 0:02:14.4]} 25. exd5
{[%clk 0:02:26.4]} 25... Qxd5 {[%clk 0:02:14.9]} 26. Nxe5 {[%clk 0:02:27.3]}
26... Nxe5 {[%clk 0:02:00.9]} 27. Bxe5 {[%clk 0:02:27.9]} 27... Rfe8 {[%clk
0:01:55.4]} 28. Bxg7 {[%clk 0:02:28]} 28... Kxg7 {[%clk 0:01:56]} 29. Re7 {[%clk
0:02:24.6]} 29... Bc6 {[%clk 0:01:21.9]} 30. Rce1 {[%clk 0:02:23.3]} 30... Qg5
{[%clk 0:01:18.5]} 31. R7e3 {[%clk 0:02:05.2]} 31... Rxe3 {[%clk 0:01:11.6]} 32.
Rxe3 {[%clk 0:02:05.2]} 32... Re8 {[%clk 0:01:12.7]} 33. Rxe8 {[%clk 0:02:03]}
33... Bxe8 {[%clk 0:01:14.2]} 34. Qd6 {[%clk 0:01:55.3]} 34... Qd2 {[%clk
0:01:10]} 35. Qxa6 {[%clk 0:01:42.8]} 35... Qxb2 {[%clk 0:01:10]} 36. Qc8 {[%clk
0:01:34.5]} 36... b4 {[%clk 0:01:00.1]} 37. a6 {[%clk 0:01:02.9]} 37... bxc3
{[%clk 0:00:57.5]} 38. a7 {[%clk 0:01:03.1]} 38... c2 {[%clk 0:00:58.3]} 39.
a8=Q {[%clk 0:00:58.4]} 39... c1=Q {[%clk 0:00:59.1]} 40. Qxe8 {[%clk
0:00:56.4]} 1-0